Cogmind - Beta 12 X1 @@@ ROGUE MODE // 2022.08.01 @ 18:35:36 Player: Exp. Geonium Core Result: Destroyed by P-80 Master with Gamma Rifle Performance ------------- Evolutions (9) 4500 Regions Visited (29) 5800 Robots Destroyed (183) 915 Value Destroyed (12260) 12260 Prototype IDs (26) 520 Alien Tech Used (0) 0 Bonus (12154) 12154 TOTAL SCORE: 36149 Bonus ------- High Alert Combat Kills 2128 Follower Combat Kills 4480 Entered Garrisons 2200 Used RIF Installer 6000 Aligned with FarCom 300 Friendly Fire -2954 Cogmind --------- Core Integrity 0/1600 Matter 219/300 Energy 3/100 System Corruption 4% Temperature Cool (0) Movement Core (250) Ox4 Location -1/Access Parts ------- > --- POWER (1) -------- (None) > --- PROPULSION (4) --- (None) > --- UTILITY (18) ----- Advanced Heat Sink Advanced Target Analyzer Relay Coupler [Swarmer] (14) Relay Coupler [Duelist] (25) Relay Coupler [Sentry] (32) Relay Coupler [Heavy] (1) Relay Coupler [Proto] (17) > --- WEAPON (2) ------- Enhanced Nova Cannon > --- INVENTORY (5) ---- Relay Coupler [NC] (37) Advanced Remote Datajack Advanced Remote Datajack Improved Plasma Cutter Peak State ------------ > --- POWER ------------ Reinforced Antimatter Reactor > --- PROPULSION ------- Armored Heavy Treads Armored Heavy Treads > --- UTILITY ---------- Advanced Heat Sink High-capacity Storage Unit Advanced Target Analyzer Improved Heavy Armor Plating Improved Hacking Suite Relay Coupler [NC] Relay Coupler [Swarmer] Relay Coupler [Swarmer] Relay Coupler [Grunt] Relay Coupler [Grunt] Relay Coupler [Brawler] Relay Coupler [Sentry] Relay Coupler [Sentry] Relay Coupler [Hunter] Relay Coupler [Hunter] Relay Coupler [Heavy] Relay Coupler [Proto] > --- WEAPON ----------- Advanced Remote Datajack Powered Hammer > --- INVENTORY -------- Light Antimatter Reactor Myomer Leg Myomer Leg Stasis Canceller Relay Coupler [NC] Relay Coupler [NC] Relay Coupler [NC] Relay Coupler [Heavy] Relay Coupler [Proto] Relay Coupler [Proto] Relay Coupler [Proto] Nova Cannon Advanced Datajack Advanced Datajack Advanced Remote Datajack Advanced Remote Datajack Advanced Remote Datajack Advanced Remote Datajack Improved Plasma Cutter [Rating: 140] Favorites ----------- Power Light Nuclear Core Engine Ion Engine Power Core Light Nuclear Core Reactor Light Quantum Reactor Propulsion Light Treads Treads Light Treads Leg Carbon-fiber Leg Wheel Armored Wheel Hover Unit Improved Antigrav System Utility High-capacity Storage Unit Device Graphene Brace Storage High-capacity Storage Unit Processor Advanced Targeting Computer Hackware Relay Coupler [Grunt] Protection Improved Utility Shielding Weapon Improved Remote Datajack Energy Gun AWS/Thermal Energy Cannon Nova Cannon Ballistic Gun Autogun Ballistic Cannon Heavy Mass Driver Launcher Rocket Array Special Weapon Improved Remote Datajack Impact Weapon Powered Hammer Slashing Weapon Ripper Special Melee Weapon Datajack Build | -11 -10 -10 -9 -9 -9 -8 -8 -8 -8 -8 -7 -7 -7 -7 -6 -6 -6 -6 -5 -5 -4 -4 -3 -3 -2 -2 -1 -1 -1 ------- Run | Scr Mat Min Mat Min Exi Min Mat Gar Mat Gar Fac Gar Fac Gar Fac Gar Fac Gar Fac Gar Fac Gar Res Gar Res Gar Acc Gar Acc Slots Evolved 18 | . . . 2 . . . 2 . . . 2 . . . 2 . . . 2 . 2 . 2 . 2 . 2 . . Power . | . . . . . . . . . . . . . . . . . . . . . . . . . . . . . . Propulsion 2 | . . . 1 . . . . . . . . . . . 1 . . . . . . . . . . . . . . Utility 16 | . . . 1 . . . 2 . . . 2 . . . 1 . . . 2 . 2 . 2 . 2 . 2 . . Weapon . | . . . . . . . . . . . . . . . . . . . . . . . . . . . . . . Parts Attached 354 | . 4 2 18 5 . . 6 31 9 21 8 14 4 32 6 30 4 20 11 18 3 17 11 22 6 28 6 12 6 Power 30 | . . . 1 1 . . 1 1 2 2 . 3 1 2 . 3 1 1 1 1 1 2 . 3 1 2 . . . Engine 3 | . . . . 1 . . . . . . . . . . . 2 . . . . . . . . . . . . . Core 14 | . . . 1 . . . 1 1 2 . . 2 . 2 . 1 1 1 . 1 1 . . . . . . . . Reactor 13 | . . . . . . . . . . 2 . 1 1 . . . . . 1 . . 2 . 3 1 2 . . . Propulsion 89 | . . 2 6 3 . . 1 8 1 5 3 3 2 5 1 5 . 5 4 7 . 5 6 8 . 6 . 2 1 Treads 23 | . . 2 4 3 . . 1 5 . . 3 . . . . . . 3 . . . . . . . 2 . . . Leg 51 | . . . 2 . . . . 3 1 5 . 3 . . 1 4 . 2 . 5 . 5 6 8 . 4 . 2 . Wheel 14 | . . . . . . . . . . . . . 2 5 . 1 . . 4 2 . . . . . . . . . Hover 1 | . . . . . . . . . . . . . . . . . . . . . . . . . . . . . 1 Flight . | . . . . . . . . . . . . . . . . . . . . . . . . . . . . . . Utility 106 | . 2 . 4 . . . 3 3 2 5 3 1 1 8 3 16 1 8 4 5 1 4 1 5 2 13 2 8 1 Device 14 | . . . . . . . . . . 1 1 . . 1 . 8 . . 1 . . . . . . 1 . . 1 Storage 3 | . 1 . 1 . . . . . . . . . . . . 1 . . . . . . . . . . . . . Processor 10 | . . . 2 . . . 3 . . 3 1 . . . . . . . . . . . . . . 1 . . . Hackware 64 | . . . 1 . . . . 2 1 . 1 . . 6 1 6 1 8 3 4 . 4 1 3 2 10 2 8 . Protection 15 | . 1 . . . . . . 1 1 1 . 1 1 1 2 1 . . . 1 1 . . 2 . 1 . . . Artifact . | . . . . . . . . . . . . . . . . . . . . . . . . . . . . . . Weapon 129 | . 2 . 7 1 . . 1 19 4 9 2 7 . 17 2 6 2 6 2 5 1 6 4 6 3 7 4 2 4 Energy Gun 7 | . . . . . . . . 6 . 1 . . . . . . . . . . . . . . . . . . . Energy Cannon 11 | . . . . . . . . . . . . . . . . 1 . . . . . . 1 2 . 2 1 1 3 Ballistic Gun 20 | . 2 . 6 1 . . 1 3 1 5 . . . . . . . . . . . . . . . . . 1 . Ballistic Cannon 16 | . . . . . . . . . . 1 . 3 . 2 1 2 . 2 1 1 1 2 . . . . . . . Launcher 13 | . . . 1 . . . . 1 1 2 . 2 . 3 . . . . . 1 . 1 1 . . . . . . Special Weapon 25 | . . . . . . . . . . . . . . 3 1 2 1 3 . 1 . 3 1 3 2 3 1 . 1 Impact Weapon 10 | . . . . . . . . . . . . . . . . . 1 . 1 2 . . 1 1 1 2 1 . . Slashing Weapon 20 | . . . . . . . . 9 . . . 2 . 7 . 1 . 1 . . . . . . . . . . . Piercing Weapon . | . . . . . . . . . . . . . . . . . . . . . . . . . . . . . . Special Melee Weapon 7 | . . . . . . . . . 2 . 2 . . 2 . . . . . . . . . . . . 1 . . Unidentified Prototypes 2 | . . . . . . . . . . . . . . 1 . 1 . . . . . . . . . . . . . Parts Lost 101 | . 1 . . 3 . . 2 7 2 4 2 3 . 13 . 5 . 3 5 3 . 7 2 5 . 9 4 20 1 Power 12 | . . . . 1 . . 1 1 . 1 . 1 . 2 . 2 . . 1 . . 1 . . . . . 1 . Propulsion 39 | . 1 . . 2 . . . 5 1 1 2 2 . 3 . . . 3 2 3 . 5 1 1 . 2 . 4 1 Utility 29 | . . . . . . . . 1 . 2 . . . 3 . . . . 1 . . . . 3 . 4 3 12 . Weapon 21 | . . . . . . . 1 . 1 . . . . 5 . 3 . . 1 . . 1 1 1 . 3 1 3 . Highest Loss Streak 19 | . 1 . . 3 . . 2 4 1 1 2 2 . 8 . 3 . 2 3 3 . 2 2 5 . 4 1 19 1 To Critical Strikes 2 | . . . . . . . . . . . . . . . . . . . . . . . . . . . . 2 . Average Slot Usage (%) 88 | . 87 87 99 98 100 100 91 84 99 94 89 83 89 80 66 93 98 96 94 98 94 92 88 87 75 83 78 77 28 Engine 1 | . 14 14 2 9 11 11 6 . . . . . . . . 1 1 . . . . . . . . . . . . Core 3 | . . . 8 . . . . 8 9 . . 1 . 4 . 3 4 6 4 2 5 1 . . . . . . . Reactor 2 | . . . . . . . . . . 8 7 5 7 2 . . . . . 2 . 3 4 3 4 4 4 3 . Treads 8 | . . 3 29 32 33 33 27 20 . . 16 15 . . . . . 7 14 3 . . . . . 4 8 7 . Leg 9 | . 19 12 2 . . . . 5 26 27 6 2 12 . 5 13 26 16 2 13 21 17 18 18 17 7 . . . Wheel 2 | . . . . . . . . . . . . . 7 14 6 8 . . 4 5 . . . . . . . . . Device 2 | . . . . . . . . . . 2 7 7 7 10 6 3 . . 4 . . . . . . 2 2 . . Storage 7 | . 14 14 11 11 11 11 9 9 9 9 7 7 7 7 6 6 6 6 5 5 5 5 4 4 4 4 4 3 . Processor 7 | . . . 15 11 11 11 21 19 10 15 23 23 23 5 . . . . . . . . . . . 2 4 4 4 Hackware 26 | . . . 6 11 11 11 9 7 22 9 7 7 7 26 20 36 46 44 45 48 47 48 47 45 36 44 47 52 20 Protection 3 | . 10 14 . . . . . 3 2 7 . 3 7 1 9 4 . . . 1 5 5 4 3 4 3 1 . . Ballistic Gun 4 | . 23 28 21 21 22 22 18 2 2 9 . . . . . . . . . . . . . . . . . 1 . Ballistic Cannon 1 | . . . . . . . . . . 2 2 3 7 2 3 1 4 . . . 2 . . . . . . . . Special Weapon 2 | . . . . . . . . . . . . . . 1 5 4 3 5 5 4 2 4 3 3 3 1 3 3 2 Impact Weapon 1 | . . . . . . . . . . . . . . . . . 2 3 1 4 5 5 . 2 2 3 3 . . Slashing Weapon 1 | . . . . . . . . 5 9 1 . 3 . 2 . . . 2 . . . . . . . . . . . Naked Turns . | . . . . . . . . . . . . . . . . . . . . . . . . . . . . . . Heaviest Build 95 | 13 28 28 51 53 53 53 53 58 60 75 73 83 83 83 55 65 60 59 59 60 58 61 70 90 70 95 88 81 14 Greatest Support 120 | 20 20 40 60 60 60 60 60 68 68 84 76 66 55 44 12 65 65 90 90 65 65 85 95 110 105 120 120 120 12 Greatest Overweight (x) 5 | . 2 2 . 1 . . . 2 1 1 1 1 5 4 4 5 . 1 2 5 . 1 1 1 . 1 . 1 4 Average Overweight (x) . | . . . . . . . . . . . . . 1 1 3 2 . . . . . . . . . . . . . Largest Inventory Capacity 20 | . 15 15 20 20 20 20 20 20 20 20 20 20 20 20 20 20 20 20 20 20 20 20 20 20 20 20 20 20 5 Average Capacity 19 | . 10 15 18 20 20 20 20 20 20 20 20 20 20 20 20 20 20 20 20 20 20 20 20 20 20 20 20 19 5 Most Carried 20 | . 9 10 20 20 20 20 20 20 20 20 20 20 20 20 20 20 20 20 20 20 20 20 20 20 18 20 20 19 5 Average Carried 17 | . 7 9 16 18 19 20 19 18 18 19 17 18 17 18 15 19 19 18 17 18 19 18 19 17 17 17 19 17 3 Final Capacity 20 | 8 15 15 20 20 20 20 20 20 20 20 20 20 20 20 20 20 20 20 20 20 20 20 20 20 20 20 20 5 5 Final Carried 20 | 6 9 9 20 19 20 20 17 19 19 20 18 16 20 15 20 20 20 20 18 20 20 20 20 16 17 20 19 4 4 Class Distribution -------------------- 61% | Botlord-Mutant 16% | Scavenger-Mutant 10% | Bothacker-Mutant 10% | Mutant Dominant Class ---------------- Mutant | -10/Materials Mutant | -10/Mines Scavenger-Mutant | -9/Materials Scavenger-Mutant | -9/Mines Scavenger-Mutant | -9/Exiles Scavenger-Mutant | -8/Mines Scavenger-Mutant | -8/Materials Scavenger-Mutant | -8/Garrison Bothacker-Mutant | -8/Materials Bothacker-Mutant | -8/Garrison Bothacker-Mutant | -7/Factory Botlord-Mutant | -7/Garrison Botlord-Mutant | -7/Factory Botlord-Mutant | -7/Garrison Botlord-Mutant | -6/Factory Botlord-Mutant | -6/Garrison Botlord-Mutant | -6/Factory Botlord-Mutant | -6/Garrison Botlord-Mutant | -5/Factory Botlord-Mutant | -5/Garrison Botlord-Mutant | -4/Factory Botlord-Mutant | -4/Garrison Botlord-Mutant | -3/Research Botlord-Mutant | -3/Garrison Botlord-Mutant | -2/Research Botlord-Mutant | -2/Garrison Botlord-Mutant | -1/Access Botlord-Mutant | -1/Garrison Botlord-Mutant | -1/Access Resources | -11 -10 -10 -9 -9 -9 -8 -8 -8 -8 -8 -7 -7 -7 -7 -6 -6 -6 -6 -5 -5 -4 -4 -3 -3 -2 -2 -1 -1 -1 ----------- Run | Scr Mat Min Mat Min Exi Min Mat Gar Mat Gar Fac Gar Fac Gar Fac Gar Fac Gar Fac Gar Fac Gar Res Gar Res Gar Acc Gar Acc Matter Collected 7512 | 200 34 73 476 274 . . 96 534 152 563 . 564 . 760 . 643 . 559 186 483 14 426 234 225 154 405 215 242 . Remotely . | . . . . . . . . . . . . . . . . . . . . . . . . . . . . . . Salvage Created 8565 | . 172 . 762 226 . . 299 1093 365 1148 86 587 . 1278 . 446 . 283 229 292 14 234 156 129 170 411 185 . . Parts 402 | . 9 . 57 15 . . 17 45 26 62 6 32 . 44 . 17 . 10 4 8 . 5 4 5 6 26 4 . . Haulers Intercepted 6 | . . . 2 . . . 2 . 1 . . . . . . . . . 1 . . . . . . . . . . Recyclers Shooed 2 | . . . . . . . . . . . . . . . . . . . 2 . . . . . . . . . . Parts Field Recycled . | . . . . . . . . . . . . . . . . . . . . . . . . . . . . . . Retrieved Matter . | . . . . . . . . . . . . . . . . . . . . . . . . . . . . . . Parts Self-Destructed . | . . . . . . . . . . . . . . . . . . . . . . . . . . . . . . Prevented . | . . . . . . . . . . . . . . . . . . . . . . . . . . . . . . Kills | -11 -10 -10 -9 -9 -9 -8 -8 -8 -8 -8 -7 -7 -7 -7 -6 -6 -6 -6 -5 -5 -4 -4 -3 -3 -2 -2 -1 -1 -1 ------- Run | Scr Mat Min Mat Min Exi Min Mat Gar Mat Gar Fac Gar Fac Gar Fac Gar Fac Gar Fac Gar Fac Gar Res Gar Res Gar Acc Gar Acc Combat Hostiles Destroyed 170 | . 6 . 20 5 . . 2 35 5 29 3 15 . 17 . 5 . 4 . 4 . 6 . 3 2 8 1 . . Melee 18 | . . . . . . . . 4 2 . . 3 . 3 . . . 1 . . . 1 . . 1 2 1 . . Guns 76 | . 6 . 16 5 . . 2 26 . 21 . . . . . . . . . . . . . . . . . . . Cannons 36 | . . . . . . . . . . 1 3 7 . 9 . 5 . 3 . . . . . 2 . 6 . . . AOE 38 | . . . 4 . . . . 5 3 7 . 5 . 5 . . . . . 4 . 5 . . . . . . . Classes Destroyed 20 | . 2 . 4 1 . . 3 2 1 2 . 1 . . . . . 1 . . 1 1 . . . 1 . . . Worker 1 | . . . . . . . . . . . . . . . . . . . . . 1 . . . . . . . . Builder 2 | . . . . . . . 1 . 1 . . . . . . . . . . . . . . . . . . . . Hauler 6 | . . . 2 . . . 2 . 1 . . . . . . . . . 1 . . . . . . . . . . Recycler 6 | . . . . . . . 1 . 2 . . . . . . . . . 1 . . . 1 . . . 1 . . Mechanic 1 | . . . . . . . . . 1 . . . . . . . . . . . . . . . . . . . . Operator 1 | . . . 1 . . . . . . . . . . . . . . . . . . . . . . . . . . Watcher 2 | . . . 1 . . . . . . . . 1 . . . . . . . . . . . . . . . . . Swarmer 37 | . 3 . 7 . . . . . 3 10 . 4 . 2 . . . . . 1 . 4 . . . 3 . . . Cutter 7 | . . . . . . . . 2 . . . 3 . . . . . . . . . . . 2 . . . . . Grunt 47 | . 3 . 8 3 . . 1 5 3 3 3 5 . . . 4 . 3 . 4 . 2 . . . . . . . Brawler 1 | . . . . . . . . . . . . . . . . . . . . . . . . . . 1 . . . Duelist 9 | . . . . 2 . . . 4 . 2 . . . 1 . . . . . . . . . . . . . . . Sentry 32 | . . . 5 . . . . 3 . 10 . 1 . 13 . . . . . . . . . . . . . . . Demolisher 1 | . . . . . . . . . . . . . . . . . . . . . . 1 . . . . . . . Specialist 2 | . . . . . . . . . . 1 . . . . . 1 . . . . . . . . . . . . . Hunter 17 | . . . . . . . 1 5 . 2 . 1 . . . 1 . . . 2 . 1 . 1 2 1 . . . Programmer 8 | . . . . . . . . . . . . 2 . 1 . . . 1 . . . . . . . 3 1 . . Heavy 1 | . . . . . . . . . . 1 . . . . . . . . . . . . . . . . . . . Behemoth 1 | . . . . . . . . . . . . . . . . . . 1 . . . . . . . . . . . Assembled 16 | . . . . . . . . 16 . . . . . . . . . . . . . . . . . . . . . Thug 1 | . . . . . . . . . . 1 . . . . . . . . . . . . . . . . . . . Best Kill Streak 7 | . 3 . 5 2 . . 2 7 6 5 3 6 . 6 . 2 . 2 1 4 1 5 1 1 2 5 2 . . Combat Bots Only 7 | . 3 . 4 2 . . 1 7 4 5 3 5 . 6 . 2 . 2 . 4 . 5 . 1 2 5 1 . . Max Kills in Single Turn 5 | . 1 . 2 1 . . 1 2 2 2 1 4 . 2 . 1 . 1 1 2 1 5 1 1 1 1 1 . . Gunslinging 1 | . . . . . . . . . . 1 . . . . . . . . . . . . . . . . . . . Exploded 5 | . . . 2 . . . . 2 2 2 . 3 . 2 . . . . . 2 . 5 . . . . . . . Melee 1 | . . . . . . . . 1 1 . . 1 . 1 . . . 1 . . . 1 . . 1 1 1 . . Uniques/NPCs Destroyed . | . . . . . . . . . . . . . . . . . . . . . . . . . . . . . . Combat | -11 -10 -10 -9 -9 -9 -8 -8 -8 -8 -8 -7 -7 -7 -7 -6 -6 -6 -6 -5 -5 -4 -4 -3 -3 -2 -2 -1 -1 -1 -------- Run | Scr Mat Min Mat Min Exi Min Mat Gar Mat Gar Fac Gar Fac Gar Fac Gar Fac Gar Fac Gar Fac Gar Res Gar Res Gar Acc Gar Acc Damage Taken 18439 | . 250 . 722 446 . . 307 1036 268 1041 254 1085 . 1697 19 942 . 615 392 1079 75 1014 122 1387 55 1789 691 2802 351 Core 3924 | . 27 . 129 134 . . 23 97 45 143 . 184 . 394 . 139 . 134 79 360 . 168 33 109 . 109 52 1378 187 Absorbed by Shields 863 | . . . . . . . . . . 18 . . . 6 . 55 . 18 . . . 356 83 246 . . . 81 . Redirected to Shielding 118 | . . . . . . . . . . . . . . . . 9 . . . . . 33 . 37 . 39 . . . Regen/Repaired (Parts) 27 | . . . . . . . . . . . 27 . . . . . . . . . . . . . . . . . . Core Remaining (%) 67 | 100 . 89 . . . 34 . . . 44 . . . 17 . . . 67 . 56 . 85 . 89 . 92 . . . Volleys Fired 606 | . 18 . 58 17 . . 25 8 5 49 6 21 . 51 12 60 6 31 13 43 9 25 24 29 15 34 18 23 6 Largest 2 | . 2 . 2 2 . . 2 2 1 2 1 1 . 1 1 1 1 1 1 1 1 1 1 1 1 1 1 1 1 Hottest 120 | . 60 . 53 46 . . 46 56 33 75 75 75 . 75 5 48 7 48 48 48 48 48 113 113 113 113 113 113 120 Shots Fired 886 | . 36 . 116 34 . . 50 100 4 118 6 22 . 51 12 60 7 30 13 43 9 25 24 29 15 34 18 24 6 Gun 433 | . 36 . 112 34 . . 50 96 . 103 . . . . . . . . . . . . . . . . . 2 . Cannon 201 | . . . . . . . . . . 9 6 16 . 29 . 45 1 9 3 16 9 5 3 19 4 18 1 4 4 Launcher 43 | . . . 4 . . . . 4 4 6 . 6 . 12 . . . . . 3 . 2 2 . . . . . . Special 209 | . . . . . . . . . . . . . . 10 12 15 6 21 10 24 . 18 19 10 11 16 17 18 2 Kinetic 410 | . 24 . 112 34 . . 50 11 . 77 6 16 . 29 . 6 1 9 3 16 9 5 . . . . . 2 . Thermal 224 | . 12 . . . . . . 85 . 35 . . . . . 39 . . . . . . 3 19 4 18 1 4 4 Explosive 43 | . . . 4 . . . . 4 4 6 . 6 . 12 . . . . . 3 . 2 2 . . . . . . Electromagnetic . | . . . . . . . . . . . . . . . . . . . . . . . . . . . . . . Robot Hit Streak 37 | . 9 . 20 21 . . 33 31 33 22 10 14 . 37 5 11 3 12 8 9 3 6 9 6 10 6 7 3 6 Robot Miss Streak 5 | . 2 . 2 1 . . 2 3 2 2 . 2 . 1 2 5 2 2 1 2 1 3 2 4 1 2 1 2 . Penetration Max 1 | . . . . . . . . . . 1 . . . 1 . . . . . . . . . . . . . . . Secondary Targets 5 | . . . 1 1 . . . . . 3 . . . . . . . . . . . . . . . . . . . Max Gunslinging Chain 1 | . . . 1 1 . . . . . 1 . . . . . . . . . . . . . . . . . . . Autonomous 121 | . . . . . . . . 85 . 36 . . . . . . . . . . . . . . . . . . . Shots Hit Robots 797 | . 24 . 94 30 . . 38 90 15 85 9 36 . 70 9 39 4 45 14 41 7 18 20 23 12 34 24 11 5 Core Hits 356 | . 9 . 42 9 . 1 11 41 8 43 3 23 . 41 . 13 . 8 2 40 . 39 7 3 1 11 1 . . Critical Kills 5 | . . . . . . . . . . . . . . . . . . 1 1 . . . 1 . . 1 1 . . Critical Parts Destroyed 10 | . . . . 2 . . . . . . . . . . . . . . . 1 . 1 . 1 . 1 4 . . Critical Strikes 35 | . . . . 2 . . . . . 1 1 2 . 9 . 3 . 5 1 1 . 1 1 1 . 2 5 . . Destroy 2 | . . . . 2 . . . . . . . . . . . . . . . . . . . . . . . . . Blast 10 | . . . . . . . . . . 1 1 . . 7 . . . 1 . . . . . . . . . . . Smash 13 | . . . . . . . . . . . . . . . . . . 1 1 1 . 1 1 1 . 2 5 . . Sever 10 | . . . . . . . . . . . . 2 . 2 . 3 . 3 . . . . . . . . . . . Melee Attacks 302 | . . . . . . . . 52 17 2 3 28 . 41 . 14 1 35 5 32 1 11 1 13 2 32 12 . . Impact 118 | . . . . . . . . . . . . . . . . . 1 10 5 32 1 11 1 13 2 32 10 . . Slashing 174 | . . . . . . . . 52 14 2 . 28 . 39 . 14 . 25 . . . . . . . . . . . Piercing . | . . . . . . . . . . . . . . . . . . . . . . . . . . . . . . Sneak Attacks 49 | . . . . . . . . . 6 . 1 3 . 3 . . . 19 2 5 1 2 1 3 2 . 1 . . Combat Hostiles 9 | . . . . . . . . . . . . . . 3 . . . 1 . 2 . 1 . . 2 . . . . Follow-up Attacks . | . . . . . . . . . . . . . . . . . . . . . . . . . . . . . . Damage Inflicted 26289 | . 277 3 1636 442 . 9 523 3082 916 2704 425 2664 . 4442 10 968 . 960 307 1922 328 1719 488 703 181 1103 328 . 149 Guns 6559 | . 264 . 1278 442 . . 516 2341 . 1718 . . . . . . . . . . . . . . . . . . . Cannons 5801 | . . . . . . . . . . 490 425 563 . 1645 . 533 . 249 53 206 238 91 39 447 . 673 . . 149 Explosions 5349 | . . . 343 . . . . 341 297 411 . 472 . 510 . . . . . 1138 . 1500 337 . . . . . . Melee 8503 | . . . . . . . . 400 619 85 . 1629 . 2287 . 428 . 711 254 578 90 128 112 256 181 417 328 . . Ramming 77 | . 13 3 15 . . 9 7 . . . . . . . 10 7 . . . . . . . . . 13 . . . Kinetic 7570 | . 161 . 1278 442 . . 516 85 . 1531 425 563 . 1645 . 87 . 249 53 206 238 91 . . . . . . . Thermal 4790 | . 103 . . . . . . 2256 . 677 . . . . . 446 . . . . . . 39 447 . 673 . . 149 Explosive 5349 | . . . 343 . . . . 341 297 411 . 472 . 510 . . . . . 1138 . 1500 337 . . . . . . Electromagnetic . | . . . . . . . . . . . . . . . . . . . . . . . . . . . . . . Impact 2443 | . . . . . . . . . . . . . . . . . . 99 254 578 90 128 112 256 181 417 328 . . Slashing 6060 | . . . . . . . . 400 619 85 . 1629 . 2287 . 428 . 612 . . . . . . . . . . . Piercing . | . . . . . . . . . . . . . . . . . . . . . . . . . . . . . . Highest Corruption 7 | . 1 1 . . . . . 5 5 5 . 1 1 1 . 2 5 7 2 2 . 1 . . . 5 2 2 4 Average Corruption 2 | . 1 1 . . . . . 4 5 5 . 1 1 1 . 1 3 5 1 2 . 1 . . . 4 2 2 2 Corruption Purged . | . . . . . . . . . . . . . . . . . . . . . . . . . . . . . . Corruption Blocked . | . . . . . . . . . . . . . . . . . . . . . . . . . . . . . . Effects 157 | . 3 3 . . . . . 30 12 28 . 6 2 6 . . 5 29 6 8 . 5 . . . 2 5 5 2 Message Errors 42 | . 1 . . . . . . 8 4 9 . 1 . 1 . . . 9 1 2 . 2 . . . 1 2 1 . Matter Fused 43 | . . 3 . . . . . 10 3 8 . 1 1 2 . . . 8 2 2 . . . . . . . 2 1 Heat Flow Errors 15 | . 1 . . . . . . 4 2 1 . . . 1 . . . 2 1 . . 1 . . . 1 1 . . Energy Discharges 24 | . . . . . . . . 4 2 3 . 1 1 1 . . 2 4 1 1 . 2 . . . . 1 1 . Parts Rejected 2 | . . . . . . . . 1 . 1 . . . . . . . . . . . . . . . . . . . Data Loss (minor) 14 | . . . . . . . . 2 . 2 . 1 . 1 . . 2 3 . 3 . . . . . . . . . Data Loss (major) 6 | . . . . . . . . . . 1 . 1 . . . . . 1 1 . . . . . . . 1 . 1 Misfires 4 | . . . . . . . . . . 1 . 1 . . . . 1 . . . . . . . . . . 1 . Alerts 4 | . 1 . . . . . . 1 . 1 . . . . . . . 1 . . . . . . . . . . . Weapon Failures 3 | . . . . . . . . . 1 1 . . . . . . . 1 . . . . . . . . . . . Overload Shots . | . . . . . . . . . . . . . . . . . . . . . . . . . . . . . . Overflow Damage 1619 | . . . 18 . . . . 22 179 50 34 332 . 273 . 35 . 12 43 269 51 23 . 29 14 29 168 . 38 Projectiles 330 | . . . . . . . . . . 50 34 7 . 165 . 21 . . . . 1 . . 14 . . . . 38 Explosions 54 | . . . 18 . . . . 11 . . . 17 . 6 . . . . . 2 . . . . . . . . . Melee 1235 | . . . . . . . . 11 179 . . 308 . 102 . 14 . 12 43 267 50 23 . 15 14 29 168 . . Knockbacks 18 | . . . . . . . . . . 1 3 2 . 4 . 2 . . . 1 . 1 . . 1 2 1 . . Impact 5 | . . . . . . . . . . . . . . . . . . . . 1 . . . . 1 2 1 . . Kinetic 13 | . . . . . . . . . . 1 3 2 . 4 . 2 . . . . . 1 . . . . . . . Secondary . | . . . . . . . . . . . . . . . . . . . . . . . . . . . . . . Self-Inflicted Damage 577 | . . . 16 . . . . 43 . 180 . 25 . 222 . . . . . 91 . . . . . . . . . Shots 23 | . . . 1 . . . . 2 . 3 . 2 . 11 . . . . . 4 . . . . . . . . . Rammed 7 | . . 1 2 . . 1 2 . . . . 1 . . . . . . . . . . . . . . . . . Targets Rammed 18 | . 6 1 2 . . 1 2 . . . . 1 . . 1 3 . . . . . . . . . 1 . . . Kicked 11 | . 6 . . . . . . . . . . . . . 1 3 . . . . . . . . . 1 . . . Crushed . | . . . . . . . . . . . . . . . . . . . . . . . . . . . . . . Highest Temperature 320 | . 264 . 20 16 . . 7 217 209 134 152 79 . 264 . . . 244 83 . . 187 114 320 128 160 206 68 16 Average Temperature 58 | . 70 . 7 3 . . 7 66 94 42 79 30 . 102 . . . 96 51 . . 89 60 100 68 48 123 31 12 Received Heat Transfer 2292 | . 117 . 273 78 . . 18 36 108 225 117 150 . 399 . 138 . 75 9 120 . 107 13 78 18 27 54 105 27 Siege Activations . | . . . . . . . . . . . . . . . . . . . . . . . . . . . . . . Robots Corrupted . | . . . . . . . . . . . . . . . . . . . . . . . . . . . . . . Combat Hostiles . | . . . . . . . . . . . . . . . . . . . . . . . . . . . . . . Parts Fried 7 | . . . . . . . . . . . . . . . . . . . 1 2 2 . . 1 . . 1 . . Impact Corruptions 22 | . . . . . . . . . . . . . . . . . . 1 1 8 1 1 . 1 1 3 5 . . Robots Melted . | . . . . . . . . . . . . . . . . . . . . . . . . . . . . . . Combat Hostiles . | . . . . . . . . . . . . . . . . . . . . . . . . . . . . . . Parts Melted 13 | . . . . . . . . 7 . . . . . . . 3 . 1 . 1 . . . . . 1 . . . Heat Transferred 5691 | . 225 . . . . . . 2839 . 888 . . . . . 592 . . . . . . 37 407 . 592 . . 111 Parts Sabotaged . | . . . . . . . . . . . . . . . . . . . . . . . . . . . . . . Parts Stolen . | . . . . . . . . . . . . . . . . . . . . . . . . . . . . . . Parts Stripped . | . . . . . . . . . . . . . . . . . . . . . . . . . . . . . . Power Chain Reactions . | . . . . . . . . . . . . . . . . . . . . . . . . . . . . . . Missiles Intercepted . | . . . . . . . . . . . . . . . . . . . . . . . . . . . . . . Alert | -11 -10 -10 -9 -9 -9 -8 -8 -8 -8 -8 -7 -7 -7 -7 -6 -6 -6 -6 -5 -5 -4 -4 -3 -3 -2 -2 -1 -1 -1 ------- Run | Scr Mat Min Mat Min Exi Min Mat Gar Mat Gar Fac Gar Fac Gar Fac Gar Fac Gar Fac Gar Fac Gar Res Gar Res Gar Acc Gar Acc Peak Influence 1510 | . 173 5 398 254 . . 72 1510 816 1424 797 1044 548 1297 686 811 453 893 468 1204 759 1507 941 959 642 1178 969 863 376 Initial 847 | . . 5 . 154 . . . 46 735 487 747 550 548 278 671 298 425 317 468 186 632 531 847 512 474 481 706 711 301 Average 642 | . 122 3 193 177 . . 31 625 730 973 777 819 497 839 464 563 446 692 406 808 691 1203 763 769 554 849 794 795 309 Maximum Alert Level 4 | . . . 1 1 . . . 4 3 4 3 3 2 4 2 3 2 3 2 4 3 4 3 3 2 4 3 3 1 Low Security (%) 14 | . 100 100 52 44 . 100 100 19 . . . . . . . . . . . 4 . . . . . . . . . Level 1 12 | . . . 47 55 . . . 20 . . . . 33 11 . 14 . 16 22 12 . . . . . . . . 100 Level 2 26 | . . . . . . . . 16 10 31 . 25 66 18 100 57 100 19 77 18 54 4 51 24 100 42 . 8 . Level 3 34 | . . . . . . . . 25 89 21 100 74 . 50 . 27 . 64 . 50 45 21 48 75 . 35 100 91 . Level 4 11 | . . . . . . . . 17 . 47 . . . 19 . . . . . 14 . 73 . . . 21 . . . Level 5 . | . . . . . . . . . . . . . . . . . . . . . . . . . . . . . . High Security . | . . . . . . . . . . . . . . . . . . . . . . . . . . . . . . Max Security . | . . . . . . . . . . . . . . . . . . . . . . . . . . . . . . Squads Dispatched 14 | . 1 . 1 . . . 1 . 3 . 1 . . . 1 . . . . . 1 . 1 . 2 . 2 . . Investigation 2 | . 1 . 1 . . . . . . . . . . . . . . . . . . . . . . . . . . Extermination 2 | . . . . . . . . . . . 1 . . . . . . . . . . . . . 1 . . . . Reinforcement 6 | . . . . . . . . . 1 . . . . . 1 . . . . . 1 . 1 . 1 . 1 . . Assault . | . . . . . . . . . . . . . . . . . . . . . . . . . . . . . . Garrison 4 | . . . . . . . 1 . 2 . . . . . . . . . . . . . . . . . 1 . . Intercept . | . . . . . . . . . . . . . . . . . . . . . . . . . . . . . . Searches Triggered . | . . . . . . . . . . . . . . . . . . . . . . . . . . . . . . Construction Impeded 1 | . . . . . . . . . . . . . . . . . . . . . . . . . . . 1 . . Haulers Reinforced 1 | . . . . . . . . . . . . . . . . . . . . . 1 . . . . . . . . Active Scanning Responses . | . . . . . . . . . . . . . . . . . . . . . . . . . . . . . . Cargo Convoy Interrupts . | . . . . . . . . . . . . . . . . . . . . . . . . . . . . . . Stealth | -11 -10 -10 -9 -9 -9 -8 -8 -8 -8 -8 -7 -7 -7 -7 -6 -6 -6 -6 -5 -5 -4 -4 -3 -3 -2 -2 -1 -1 -1 --------- Run | Scr Mat Min Mat Min Exi Min Mat Gar Mat Gar Fac Gar Fac Gar Fac Gar Fac Gar Fac Gar Fac Gar Res Gar Res Gar Acc Gar Acc Distress Signals 13 | . . 1 5 . . . 1 . 1 . . . . 3 . . . . 1 . 1 . . . . . . . . Communications Jammed 97 | . . . . . . . . . . . . . . . . . . . . . . 4 17 . 15 . 61 . . Distress Signals 97 | . . . . . . . . . . . . . . . . . . . . . . 4 17 . 15 . 61 . . Times Spotted 454 | . 10 . 33 6 . . 5 34 17 30 5 16 1 42 3 19 . 24 12 28 5 29 12 19 4 33 28 30 9 Peak Tracking Total 14 | . 3 . 9 3 . . 5 7 9 6 4 6 1 7 1 5 . 4 6 8 4 10 3 6 2 7 10 14 7 Tactical Retreats 14 | . . . 1 1 . . . 1 . 3 . 1 . 1 . . . . . . . . . 3 . . 3 . . Traps | -11 -10 -10 -9 -9 -9 -8 -8 -8 -8 -8 -7 -7 -7 -7 -6 -6 -6 -6 -5 -5 -4 -4 -3 -3 -2 -2 -1 -1 -1 ------- Run | Scr Mat Min Mat Min Exi Min Mat Gar Mat Gar Fac Gar Fac Gar Fac Gar Fac Gar Fac Gar Fac Gar Res Gar Res Gar Acc Gar Acc Traps Triggered 52 | . 2 . 2 . . . . 4 . 6 1 . 2 9 . 12 2 2 2 4 . 1 . . 1 . . 1 1 Indirectly . | . . . . . . . . . . . . . . . . . . . . . . . . . . . . . . Trap Hack Attempts . | . . . . . . . . . . . . . . . . . . . . . . . . . . . . . . Triggered . | . . . . . . . . . . . . . . . . . . . . . . . . . . . . . . Disarmed . | . . . . . . . . . . . . . . . . . . . . . . . . . . . . . . Reprogrammed . | . . . . . . . . . . . . . . . . . . . . . . . . . . . . . . Reused . | . . . . . . . . . . . . . . . . . . . . . . . . . . . . . . Traps Extracted . | . . . . . . . . . . . . . . . . . . . . . . . . . . . . . . Installed . | . . . . . . . . . . . . . . . . . . . . . . . . . . . . . . Triggered . | . . . . . . . . . . . . . . . . . . . . . . . . . . . . . . Machines | -11 -10 -10 -9 -9 -9 -8 -8 -8 -8 -8 -7 -7 -7 -7 -6 -6 -6 -6 -5 -5 -4 -4 -3 -3 -2 -2 -1 -1 -1 ---------- Run | Scr Mat Min Mat Min Exi Min Mat Gar Mat Gar Fac Gar Fac Gar Fac Gar Fac Gar Fac Gar Fac Gar Res Gar Res Gar Acc Gar Acc Machines Disabled 45 | . . . 1 . . . . 2 3 3 . 2 . 4 . 7 . 4 . 7 . 3 . 1 2 4 1 1 . Max in Single Turn 2 | . . . 1 . . . . 1 2 2 . 1 . 1 . 1 . 1 . 1 . 1 . 1 . 1 . 1 . Garrison Relay 26 | . . . . . . . . 2 . 1 . 1 . 4 . 3 . 4 . 3 . 3 . 1 . 3 . 1 . Phase Generator 2 | . . . . . . . . . . 1 . . . . . 1 . . . . . . . . . . . . . Machines Sabotaged . | . . . . . . . . . . . . . . . . . . . . . . . . . . . . . . Garrisons Compromised . | . . . . . . . . . . . . . . . . . . . . . . . . . . . . . . Overloaded Fab Kills . | . . . . . . . . . . . . . . . . . . . . . . . . . . . . . . Hacking | -11 -10 -10 -9 -9 -9 -8 -8 -8 -8 -8 -7 -7 -7 -7 -6 -6 -6 -6 -5 -5 -4 -4 -3 -3 -2 -2 -1 -1 -1 --------- Run | Scr Mat Min Mat Min Exi Min Mat Gar Mat Gar Fac Gar Fac Gar Fac Gar Fac Gar Fac Gar Fac Gar Res Gar Res Gar Acc Gar Acc Machines Accessed 42 | . 1 . 2 . 1 . 2 3 5 2 2 . 2 2 2 1 2 1 2 3 1 2 2 . 2 1 1 . . Terminals 30 | . 1 . 2 . . . 1 3 4 2 1 . 1 2 1 1 1 1 1 3 . 2 1 . 1 1 . . . Fabricators . | . . . . . . . . . . . . . . . . . . . . . . . . . . . . . . Repair Stations . | . . . . . . . . . . . . . . . . . . . . . . . . . . . . . . Recycling Units . | . . . . . . . . . . . . . . . . . . . . . . . . . . . . . . Scanalyzers . | . . . . . . . . . . . . . . . . . . . . . . . . . . . . . . Garrison Access 11 | . . . . . . . 1 . 1 . 1 . 1 . 1 . 1 . 1 . 1 . 1 . 1 . 1 . . Total Hacks 75 | . 1 . 7 . 1 . 3 5 11 3 4 . 4 3 4 1 3 1 4 7 1 2 3 . 4 2 1 . . Successful 34 | . . . . . 1 . 1 2 6 1 2 . 2 . 1 1 2 1 3 2 1 2 1 . 3 1 1 . . Failed 41 | . 1 . 7 . . . 2 3 5 2 2 . 2 3 3 . 1 . 1 5 . . 2 . 1 1 . . . Catastrophic 11 | . 1 . 1 . . . . 2 2 1 1 . . . 1 . 1 . 1 . . . . . . . . . . Database Lockouts . | . . . . . . . . . . . . . . . . . . . . . . . . . . . . . . Manual 31 | . 1 . 7 . 1 . 2 1 10 . 3 . 1 . 1 . 2 . 2 . . . . . . . . . . Terminals 57 | . 1 . 7 . . . 2 5 10 3 2 . 2 3 2 1 1 1 1 7 . 2 2 . 3 2 . . . Fabricators . | . . . . . . . . . . . . . . . . . . . . . . . . . . . . . . Repair Stations . | . . . . . . . . . . . . . . . . . . . . . . . . . . . . . . Recycling Units . | . . . . . . . . . . . . . . . . . . . . . . . . . . . . . . Scanalyzers . | . . . . . . . . . . . . . . . . . . . . . . . . . . . . . . Garrison Access 17 | . . . . . . . 1 . 1 . 2 . 2 . 2 . 2 . 3 . 1 . 1 . 1 . 1 . . Terminal Hacks 16 | . . . . . 1 . . 2 2 1 . . 1 . . 1 . 1 . 2 . 2 . . 2 1 . . . Part Schematic 1 | . . . . . . . . . . . . . . . . . . . . . . . . . 1 . . . . Open Door 2 | . . . . . . . . . . 1 . . . . . . . . . . . 1 . . . . . . . Emergency Access Points 4 | . . . . . . . . 1 . . . . . . . 1 . . . 1 . 1 . . . . . . . Unreport Threat 3 | . . . . . . . . . 2 . . . 1 . . . . . . . . . . . . . . . . Hauler Manifests 1 | . . . . . . . . . . . . . . . . . . . . . . . . . 1 . . . . Garrison Registry 2 | . . . . . . . . . . . . . . . . . . 1 . . . . . . . 1 . . . Patrol Navigation 2 | . . . . . . . . 1 . . . . . . . . . . . 1 . . . . . . . . . EX-Prototype ID Bank 1 | . . . . . 1 . . . . . . . . . . . . . . . . . . . . . . . . Fabricator Hacks . | . . . . . . . . . . . . . . . . . . . . . . . . . . . . . . Repair Station Hacks . | . . . . . . . . . . . . . . . . . . . . . . . . . . . . . . Recycling Unit Hacks . | . . . . . . . . . . . . . . . . . . . . . . . . . . . . . . Scanalyzer . | . . . . . . . . . . . . . . . . . . . . . . . . . . . . . . Garrison Access Hacks 11 | . . . . . . . 1 . 1 . 1 . 1 . 1 . 1 . 1 . 1 . 1 . 1 . 1 . . Unlock Access 11 | . . . . . . . 1 . 1 . 1 . 1 . 1 . 1 . 1 . 1 . 1 . 1 . 1 . . Unauthorized Hacks 7 | . . . . . . . . . 3 . 1 . . . . . 1 . 2 . . . . . . . . . . Terminals 4 | . . . . . . . . . 3 . 1 . . . . . . . . . . . . . . . . . . Assimilate 1 | . . . . . . . . . . . 1 . . . . . . . . . . . . . . . . . . Botnet 2 | . . . . . . . . . 2 . . . . . . . . . . . . . . . . . . . . Operators 1 | . . . . . . . . . 1 . . . . . . . . . . . . . . . . . . . . Fabricators . | . . . . . . . . . . . . . . . . . . . . . . . . . . . . . . Repair Stations . | . . . . . . . . . . . . . . . . . . . . . . . . . . . . . . Recycling Units . | . . . . . . . . . . . . . . . . . . . . . . . . . . . . . . Scanalyzers . | . . . . . . . . . . . . . . . . . . . . . . . . . . . . . . Garrison Access 3 | . . . . . . . . . . . . . . . . . 1 . 2 . . . . . . . . . . Restock 1 | . . . . . . . . . . . . . . . . . . . 1 . . . . . . . . . . Reprogram 2 | . . . . . . . . . . . . . . . . . 1 . 1 . . . . . . . . . . Data Cores Recovered . | . . . . . . . . . . . . . . . . . . . . . . . . . . . . . . Used . | . . . . . . . . . . . . . . . . . . . . . . . . . . . . . . Hacking Detections 32 | . 1 . 2 . . . 1 2 4 1 2 . 2 2 2 . 2 1 2 2 1 . 1 . 2 1 1 . . Full Trace Events 3 | . . . 1 . . . . 1 . 1 . . . . . . . . . . . . . . . . . . . Feedback Events 1 | . . . . . . . . 1 . . . . . . . . . . . . . . . . . . . . . Corruption 1 | . . . . . . . . 1 . . . . . . . . . . . . . . . . . . . . . Feedback Blocked . | . . . . . . . . . . . . . . . . . . . . . . . . . . . . . . Robot Schematics Acquired . | . . . . . . . . . . . . . . . . . . . . . . . . . . . . . . Robots Built . | . . . . . . . . . . . . . . . . . . . . . . . . . . . . . . Authchips . | . . . . . . . . . . . . . . . . . . . . . . . . . . . . . . Time . | . . . . . . . . . . . . . . . . . . . . . . . . . . . . . . Total Robot Build Rating . | . . . . . . . . . . . . . . . . . . . . . . . . . . . . . . Part Schematics Acquired 1 | . . . . . . . . . . . . . . . . . . . . . . . . . 1 . . . . Parts Built . | . . . . . . . . . . . . . . . . . . . . . . . . . . . . . . Authchips . | . . . . . . . . . . . . . . . . . . . . . . . . . . . . . . Time . | . . . . . . . . . . . . . . . . . . . . . . . . . . . . . . Total Part Build Rating . | . . . . . . . . . . . . . . . . . . . . . . . . . . . . . . Parts Repaired . | . . . . . . . . . . . . . . . . . . . . . . . . . . . . . . Time . | . . . . . . . . . . . . . . . . . . . . . . . . . . . . . . Parts Recycled . | . . . . . . . . . . . . . . . . . . . . . . . . . . . . . . Recycled Matter . | . . . . . . . . . . . . . . . . . . . . . . . . . . . . . . Retrieved Matter . | . . . . . . . . . . . . . . . . . . . . . . . . . . . . . . Retrieved Components . | . . . . . . . . . . . . . . . . . . . . . . . . . . . . . . Parts Scanalyzed . | . . . . . . . . . . . . . . . . . . . . . . . . . . . . . . Part Schematics Acquired . | . . . . . . . . . . . . . . . . . . . . . . . . . . . . . . Parts Damaged . | . . . . . . . . . . . . . . . . . . . . . . . . . . . . . . Bothacking | -11 -10 -10 -9 -9 -9 -8 -8 -8 -8 -8 -7 -7 -7 -7 -6 -6 -6 -6 -5 -5 -4 -4 -3 -3 -2 -2 -1 -1 -1 ------------ Run | Scr Mat Min Mat Min Exi Min Mat Gar Mat Gar Fac Gar Fac Gar Fac Gar Fac Gar Fac Gar Fac Gar Res Gar Res Gar Acc Gar Acc Used RIF Installer 12 | . . . . . . . . 1 . 1 . 2 . 1 . 1 . 1 . 1 . 1 . 1 . 1 . 1 . Hotswap 1 | . . . . . . . . . . . . . . . . . . . . . . 1 . . . . . . . Code Merge 1 | . . . . . . . . . . . . 1 . . . . . . . . . . . . . . . . . Command Fork 1 | . . . . . . . . . . . . 1 . . . . . . . . . . . . . . . . . Signal Jammer 1 | . . . . . . . . . . . . . . . . 1 . . . . . . . . . . . . . Zone Cloak 2 | . . . . . . . . . . . . . . . . . . . . . . . . 1 . 1 . . . Robot Detection 1 | . . . . . . . . . . 1 . . . . . . . . . . . . . . . . . . . Watcher Feeds 1 | . . . . . . . . . . . . . . . . . . 1 . . . . . . . . . . . Patrol Navigation 1 | . . . . . . . . . . . . . . . . . . . . . . . . . . . . 1 . Program Shield 1 | . . . . . . . . . . . . . . 1 . . . . . . . . . . . . . . . Autooverride 1 | . . . . . . . . . . . . . . . . . . . . 1 . . . . . . . . . Robots Hacked 135 | . . . . . . . . . 2 . 2 . . 10 4 7 5 12 7 17 . 12 7 8 5 11 11 14 1 Non-combat 17 | . . . . . . . . . . . 1 . . . 3 . 5 . 1 . . 1 2 . 1 . 3 . . Combat 118 | . . . . . . . . . 2 . 1 . . 10 1 7 . 12 6 17 . 11 5 8 4 11 8 14 1 Autooverrided 11 | . . . . . . . . . . . . . . . . . . . . 1 . 2 1 2 . 1 . 4 . Robot Hacks Applied 142 | . . . . . . . . . 3 . 3 . . 10 7 9 5 12 8 16 . 11 11 7 6 10 13 10 1 parse_system 1 | . . . . . . . . . . . . . . . . . . . . . . 1 . . . . . . . no_distress 1 | . . . . . . . . . . . . . . . . . 1 . . . . . . . . . . . . map_walls 5 | . . . . . . . . . . . . . . . 2 . 2 . . . . . . . 1 . . . . drop_inventory 3 | . . . . . . . . . . . . . . . . . 2 . . . . . . . . . 1 . . ignore_parts 2 | . . . . . . . . . . . . . . . . . . . 1 . . . . . . . 1 . . purge_threat 5 | . . . . . . . . . . . . . . . 2 . . . . . . . 3 . . . . . . block_reporting 1 | . . . . . . . . . . . . . . . . . . . . . . . 1 . . . . . . map_route 1 | . . . . . . . . . . . . . . . . . . . . . . . . . . . 1 . . find_garrison 7 | . . . . . . . . . 1 . 1 . . . 1 . . . 1 . . . 1 . 1 . 1 . . scatter_targeting 3 | . . . . . . . . . . . . . . . . . . . . 2 . 1 . . . . . . . amplify_resonance 1 | . . . . . . . . . . . . . . . . . . . . . . . . . . . . 1 . reboot_system 6 | . . . . . . . . . . . . . . 2 . 1 . . . 1 . 1 . 1 . . . . . go_dormant 1 | . . . . . . . . . . . . . . 1 . . . . . . . . . . . . . . . overwrite_iff 41 | . . . . . . . . . 1 . . . . 2 . 5 . 6 3 7 . . 2 3 . 3 2 7 . streamctrl_high 1 | . . . . . . . . . . . . . . . . . . 1 . . . . . . . . . . . formatsys_low 4 | . . . . . . . . . . . 1 . . . 1 . . . . . . . 2 . . . . . . formatsys_high 59 | . . . . . . . . . 1 . 1 . . 5 1 3 . 5 3 6 . 8 2 3 4 7 7 2 1 Relay Couplers Released 115 | . . . . . . . . 8 . 3 . 4 . 16 . 12 . 23 4 12 . 11 . 4 . 13 . 5 . Machine Destruction 108 | . . . . . . . . 8 . 3 . 4 . 16 . 12 . 20 . 12 . 11 . 4 . 13 . 5 . Programmers 7 | . . . . . . . . . . . . . . . . . . 3 4 . . . . . . . . . . Attached 60 | . . . . . . . . 2 1 . 1 . . 6 1 6 . 8 3 4 . 4 1 3 2 8 2 8 . Merged Code Value 580 | . . . . . . . . . . . . 24 . 45 8 73 . 101 24 39 . 42 . 38 . 177 . 9 . Fabnet Peak Effective % . | . . . . . . . . . . . . . . . . . . . . . . . . . . . . . . Robots Rewired 16 | . . . . . . . . . . 2 . . . 7 . . . . . 2 . 2 . . . 3 . . . Allies Hacked . | . . . . . . . . . . . . . . . . . . . . . . . . . . . . . . Hacks Repelled . | . . . . . . . . . . . . . . . . . . . . . . . . . . . . . . Allies | -11 -10 -10 -9 -9 -9 -8 -8 -8 -8 -8 -7 -7 -7 -7 -6 -6 -6 -6 -5 -5 -4 -4 -3 -3 -2 -2 -1 -1 -1 -------- Run | Scr Mat Min Mat Min Exi Min Mat Gar Mat Gar Fac Gar Fac Gar Fac Gar Fac Gar Fac Gar Fac Gar Res Gar Res Gar Acc Gar Acc Total Allies 145 | . . . . . . . . . 2 2 3 . . 14 2 7 . 12 8 19 . 13 9 9 4 17 9 14 1 Largest Group 16 | . . . . . . . . . 1 2 3 3 . 10 2 6 . 5 5 12 7 13 15 16 4 12 4 5 1 Highest-Rated Group 790 | . . . . . . . . . 29 70 61 61 . 243 67 176 . 129 135 486 304 660 718 790 420 712 306 256 178 Highest-Rated Ally 178 | . . . . . . . . . 29 39 29 29 . 43 41 41 . 85 41 49 49 65 65 65 178 178 178 69 178 Total Orders 17 | . . . . . . . . . . . 1 6 . . . 4 . . . 2 . 2 . 2 . . . . . STAY 9 | . . . . . . . . . . . . 4 . . . 2 . . . 1 . 1 . 1 . . . . . FOLLOW 7 | . . . . . . . . . . . . 2 . . . 2 . . . 1 . 1 . 1 . . . . . AID 1 | . . . . . . . . . . . 1 . . . . . . . . . . . . . . . . . . Ally Attacks 715 | . . . . . . . . . 4 20 1 . . 93 1 47 . 69 20 70 23 73 38 93 6 85 39 27 6 Total Damage 22453 | . . . . . . . . . 55 260 . . . 2534 . 994 . 1075 678 1552 794 3367 1246 2809 236 3665 1887 915 386 Kills 135 | . . . . . . . . . 1 2 . . . 16 . 9 . 14 5 16 5 17 5 13 1 16 6 6 3 Allies Corrupted 9 | . . . . . . . . . . . . . . 1 . . . . . 2 1 1 . 2 . 1 1 . . Allies Melted 3 | . . . . . . . . . 1 . . . . . . . . . . . . . . 2 . . . . . Intel | -11 -10 -10 -9 -9 -9 -8 -8 -8 -8 -8 -7 -7 -7 -7 -6 -6 -6 -6 -5 -5 -4 -4 -3 -3 -2 -2 -1 -1 -1 ------- Run | Scr Mat Min Mat Min Exi Min Mat Gar Mat Gar Fac Gar Fac Gar Fac Gar Fac Gar Fac Gar Fac Gar Res Gar Res Gar Acc Gar Acc Robot Analysis Total . | . . . . . . . . . . . . . . . . . . . . . . . . . . . . . . Derelict Logs Recovered 3 | . . 1 . 2 . . . . . . . . . . . . . . . . . . . . . . . . . Drone Launches . | . . . . . . . . . . . . . . . . . . . . . . . . . . . . . . Drone Recoveries . | . . . . . . . . . . . . . . . . . . . . . . . . . . . . . . Exploration | -11 -10 -10 -9 -9 -9 -8 -8 -8 -8 -8 -7 -7 -7 -7 -6 -6 -6 -6 -5 -5 -4 -4 -3 -3 -2 -2 -1 -1 -1 ------------- Run | Scr Mat Min Mat Min Exi Min Mat Gar Mat Gar Fac Gar Fac Gar Fac Gar Fac Gar Fac Gar Fac Gar Res Gar Res Gar Acc Gar Acc Turns Passed 18068 | . 459 605 902 577 333 114 224 1792 378 934 305 994 304 1433 388 1152 322 1065 496 1137 143 987 262 488 330 891 295 503 255 Spaces Moved 10182 | 1 215 102 398 318 208 71 89 1022 252 611 185 402 192 894 239 648 179 590 276 751 86 687 140 296 219 450 122 242 297 Core 345 | . . . . . . . . . . . . . . . . . . . . . . . . . . . . 50 295 Treads 3271 | . . 52 398 318 208 71 89 714 . . 131 346 . . . . . 232 178 . . . . . . 220 122 192 . Legs 4414 | 1 215 50 . . . . . 308 252 611 54 56 62 . . 142 179 358 . 468 86 687 140 296 219 230 . . . Wheels 2150 | . . . . . . . . . . . . . 130 894 239 506 . . 98 283 . . . . . . . . . Hover 2 | . . . . . . . . . . . . . . . . . . . . . . . . . . . . . 2 Flight . | . . . . . . . . . . . . . . . . . . . . . . . . . . . . . . Fastest Speed 50 | 120 120 160 160 160 160 160 160 116 116 110 113 145 115 110 135 110 120 120 110 110 120 120 120 120 120 120 170 50 50 Average Speed 137 | 120 177 209 160 161 160 160 160 151 117 112 137 201 152 112 144 137 120 140 142 116 120 120 127 122 120 144 170 146 77 Slowest Speed 320 | 120 260 260 160 240 160 160 160 320 185 186 225 225 190 150 150 260 120 240 160 190 120 190 190 190 120 250 170 250 250 Overloaded Moves . | . . . . . . . . . . . . . . . . . . . . . . . . . . . . . . Propulsion Burnouts . | . . . . . . . . . . . . . . . . . . . . . . . . . . . . . . Robots Hopped . | . . . . . . . . . . . . . . . . . . . . . . . . . . . . . . Cave-ins Triggered . | . . . . . . . . . . . . . . . . . . . . . . . . . . . . . . Exploration Rate (%) 35 | 2 53 18 37 60 61 20 13 90 31 71 7 42 8 85 7 68 8 50 9 72 6 60 10 50 9 49 12 39 9 Regions Visited 29 Branch Regions 4 Pre-discovered Areas 2 | . . 1 . 1 . . . . . . . . . . . . . . . . . . . . . . . . . Known Exits Taken 11 | . . . . . . . 1 . 1 . 1 . 1 . 1 . 1 . 1 . 1 . 1 . 1 . 1 . . Unknown Exits Taken 7 | 1 1 1 1 1 1 1 . . . . . . . . . . . . . . . . . . . . . . . Scrap Searched 1 | . . . . 1 . . . . . . . . . . . . . . . . . . . . . . . . . Spaces Dug 99 | . . . . . . . . 24 4 11 . 19 . 22 . . 1 . 2 7 . . . . 4 4 . . 1 Terrain Destroyed 449 | . . . 20 . . . . 30 53 77 . 41 . 129 . . 1 . 2 20 1 10 47 6 4 5 1 1 1 Melee 36 | . . . . . . . . 17 4 1 . . . . . . 1 . 2 7 . . . . . 4 . . . Projectile 33 | . . . . . . . . 1 . 7 . 3 . 4 . . . . . . 1 2 1 6 4 1 1 1 1 AOE 380 | . . . 20 . . . . 12 49 69 . 38 . 125 . . . . . 13 . 8 46 . . . . . . Terrain Rammed . | . . . . . . . . . . . . . . . . . . . . . . . . . . . . . . Walls Destroyed . | . . . . . . . . . . . . . . . . . . . . . . . . . . . . . . Machines Disabled . | . . . . . . . . . . . . . . . . . . . . . . . . . . . . . . Actions | -11 -10 -10 -9 -9 -9 -8 -8 -8 -8 -8 -7 -7 -7 -7 -6 -6 -6 -6 -5 -5 -4 -4 -3 -3 -2 -2 -1 -1 -1 --------- Run | Scr Mat Min Mat Min Exi Min Mat Gar Mat Gar Fac Gar Fac Gar Fac Gar Fac Gar Fac Gar Fac Gar Res Gar Res Gar Acc Gar Acc Total 13142 | . 260 494 558 351 209 71 127 1179 306 768 228 509 204 1191 275 824 284 741 362 925 115 806 209 375 273 606 190 383 319 Wait 1065 | . 8 388 46 10 . . . 25 15 36 12 17 . 22 6 21 87 37 56 44 14 20 29 2 30 5 28 101 6 Move 10160 | . 214 101 397 317 207 70 89 1021 252 610 185 401 192 893 238 647 178 589 275 750 86 686 140 295 219 449 122 240 297 Hop . | . . . . . . . . . . . . . . . . . . . . . . . . . . . . . . Pick Up 170 | . 5 1 17 2 1 . 1 16 4 13 5 12 3 15 9 18 3 12 1 7 1 5 . 5 1 9 1 2 1 Fast Attach 114 | . 2 . 7 2 . . 3 7 . 8 1 3 4 6 3 8 2 10 3 6 . 6 2 9 . 15 . 5 2 Attach 134 | . . 2 2 3 . . 2 17 5 6 7 10 . 21 3 9 1 4 5 5 1 4 1 6 2 5 2 7 4 Detach 33 | . . 1 3 . . . . 9 . . 1 2 3 8 1 . . 1 . 1 . . . . . . . . 3 Swap 106 | . 2 . 9 . . . 1 7 4 7 . 1 . 5 . 13 1 6 3 7 2 7 8 7 4 8 4 . . Drop 175 | . 5 . 17 . 1 . 4 15 3 19 6 13 2 17 2 15 5 16 . 8 1 1 4 9 . 9 . 3 . Fire 606 | . 18 . 58 17 . . 25 8 5 49 6 21 . 51 12 60 6 31 13 43 9 25 24 29 15 34 18 23 6 Melee 302 | . . . . . . . . 52 17 2 3 28 . 41 . 14 1 35 5 32 1 11 1 13 2 32 12 . . Ram . | . . . . . . . . . . . . . . . . . . . . . . . . . . . . . . Kick 11 | . 6 . . . . . . . . . . . . . 1 3 . . . . . . . . . 1 . . . Crush 7 | . . 1 2 . . 1 2 . . . . 1 . . . . . . . . . . . . . . . . . Escape Stasis 122 | . . . . . . . . 2 . 14 . . . 78 . 16 . . . 5 . 5 . . . . . 2 . Rewire 137 | . . . . . . . . . 1 4 2 . . 34 . . . . 1 17 . 36 . . . 39 3 . . Trap . | . . . . . . . . . . . . . . . . . . . . . . . . . . . . . . Miscellaneous . | . . . . . . . . . . . . . . . . . . . . . . . . . . . . . . Route ------- -11/Scrapyard -10/Materials (discovered 3 exits: *Mat / [*Min x2]) -10/Mines -9/Materials (discovered 2 exits: *Mat / [*Min]) -9/Mines (discovered 2 exits: *Mat / *Exi) -9/Exiles -8/Mines -8/Materials -8/Garrison (discovered 3 exits: *Mat x3) -8/Materials -8/Garrison (discovered 2 exits: *Fac x2) -7/Factory (discovered 3 exits: Sto / [*Low] / Gar) -7/Garrison -7/Factory -7/Garrison (discovered 3 exits: *Fac x3) -6/Factory -6/Garrison (discovered 2 exits: *Fac x2) -6/Factory -6/Garrison (discovered 4 exits: *Fac x3 / [Fac]) -5/Factory -5/Garrison (discovered 3 exits: *Fac x3) -4/Factory -4/Garrison (discovered 3 exits: *Res x3) -3/Research -3/Garrison -2/Research -2/Garrison (discovered 4 exits: *Acc x3 / [*Res]) -1/Access -1/Garrison -1/Access History --------- Turn | Location | Event 1 | -11/Scrapyard | Discovered new exit (range 0) 1 | -11/Scrapyard | Entered Materials 215 | -10/Materials | Discovered new exit (range 8) 307 | -10/Materials | Build established: Mutant 329 | -10/Materials | Discovered new exit (range 5) 449 | -10/Materials | Discovered new exit (range 5) 460 | -10/Materials | Entered Mines 467 | -10/Mines | Received a Rocket Launcher from a helpful Derelict 507 | -10/Mines | Assembled infested the area 1028 | -10/Mines | Learned location of Zion (-7) 1059 | -10/Mines | Discovered new exit (range 5) 1065 | -10/Mines | Entered Materials 1065 | -9/Materials | Evolved 2 slots: Propulsion x1, Utility x1 1696 | -9/Materials | Discovered new exit (range 15) 1810 | -9/Materials | Build established: Scavenger-Mutant 1887 | -9/Materials | Discovered new exit (range 8) 1967 | -9/Materials | Entered Mines 2012 | -9/Mines | Core integrity fell below 50% 2078 | -9/Mines | Lost 3 parts (1p2n) 2092 | -9/Mines | Discovered new exit (range 10) 2347 | -9/Mines | A weapon hastily lodged in a ceiling crevice suddenly fell to the ground 2506 | -9/Mines | Found a hidden stash of uninstalled traps 2538 | -9/Mines | Deemed a non-threat by the Exiles lab entrance 2538 | -9/Mines | Discovered new exit (range 5) 2544 | -9/Mines | Entered Exiles 2583 | -9/Exiles | Met 8R-AWN 2612 | -9/Exiles | Met EX-HEX 2655 | -9/Exiles | Met EX-BIN 2672 | -9/Exiles | Aligned with FarCom system 2674 | -9/Exiles | Given EX-Vault access code 2712 | -9/Exiles | Opened EX-Vault 2721 | -9/Exiles | Found AWS/Thermal 2756 | -9/Exiles | Warned to stay clear of 0b10 Research branches 2802 | -9/Exiles | Met EX-DEC 2858 | -9/Exiles | Discovered new exit (range 14) 2877 | -9/Exiles | Left Exiles lab with AWS/Thermal 2877 | -9/Exiles | Entered Mines 2977 | -8/Mines | Discovered new exit (range 11) 2991 | -8/Mines | Entered Materials 2991 | -8/Materials | Evolved 2 slots: Utility x2 3170 | -8/Materials | Garrison activated, responded to threat 3214 | -8/Materials | Identified exit to Garrison 3215 | -8/Materials | Entered Garrison 3294 | -8/Garrison | Assembled breached garrison interior 3476 | -8/Garrison | Destroyed 7 combat bots 3927 | -8/Garrison | Discovered new exit (range 14) 4034 | -8/Garrison | Spotted B-75 Beast 4253 | -8/Garrison | Discovered new exit (range 9) 4488 | -8/Garrison | Discovered new exit (range 3) 4604 | -8/Garrison | Lost 4 parts (1p2n1u) 4830 | -8/Garrison | Installed Relay Interface Framework 4862 | -8/Garrison | Garrison Relay disabled 4864 | -8/Garrison | Build established: Mutant 4957 | -8/Garrison | Garrison Relay disabled 5007 | -8/Garrison | Entered Materials 5223 | -8/Materials | Garrison activated, responded to threat 5305 | -8/Materials | Build established: Bothacker-Mutant 5385 | -8/Materials | Identified exit to Garrison 5385 | -8/Materials | Entered Garrison 5500 | -8/Garrison | Triggered checkpoint 5574 | -8/Garrison | Triggered checkpoint 5753 | -8/Garrison | Discovered new exit (range 13) 5794 | -8/Garrison | Phase Generator disabled 5807 | -8/Garrison | Garrison Relay disabled 5860 | -8/Garrison | Triggered checkpoint 5922 | -8/Garrison | Triggered checkpoint 5984 | -8/Garrison | Triggered checkpoint 6119 | -8/Garrison | Discovered new exit (range 11) 6124 | -8/Garrison | Heavy support dispatched to Factory 6182 | -8/Garrison | Triggered checkpoint 6196 | -8/Garrison | Core integrity fell below 50% 6236 | -8/Garrison | Expanded RIF knowledge: Robot Detection 6258 | -8/Garrison | Triggered checkpoint 6319 | -8/Garrison | Entered Factory 6319 | -7/Factory | Evolved 2 slots: Utility x2 6320 | -7/Factory | Identified exit to Storage 6477 | -7/Factory | Discovered new exit (range 8) 6624 | -7/Factory | Identified exit to Garrison 6624 | -7/Factory | Entered Garrison 6624 | -7/Garrison | Accompanied by 3 allies 6795 | -7/Garrison | Expanded RIF knowledge: Command Fork 6925 | -7/Garrison | Expanded RIF knowledge: Code Merge 7020 | -7/Garrison | Triggered checkpoint 7048 | -7/Garrison | Garrison Relay disabled 7203 | -7/Garrison | Triggered checkpoint 7206 | -7/Garrison | Build established: Botlord-Mutant 7482 | -7/Garrison | Triggered checkpoint 7588 | -7/Garrison | Discovered new exit (range 15) 7618 | -7/Garrison | Entered Factory 7904 | -7/Factory | Found Prototype Launcher 7922 | -7/Factory | Identified exit to Garrison 7922 | -7/Factory | Entered Garrison 8086 | -7/Garrison | Triggered checkpoint 8292 | -7/Garrison | Garrison Relay disabled 8374 | -7/Garrison | Triggered checkpoint 8384 | -7/Garrison | Triggered checkpoint 8472 | -7/Garrison | Discovered new exit (range 11) 8584 | -7/Garrison | Triggered checkpoint 8595 | -7/Garrison | Garrison Relay disabled 8692 | -7/Garrison | Discovered new exit (range 12) 8813 | -7/Garrison | Discovered new exit (range 8) 8868 | -7/Garrison | Triggered checkpoint 8875 | -7/Garrison | Garrison Relay disabled 9080 | -7/Garrison | Triggered checkpoint 9101 | -7/Garrison | Garrison Relay disabled 9221 | -7/Garrison | Core integrity fell below 50% 9234 | -7/Garrison | Identified Rocket Array 9242 | -7/Garrison | Spotted B-75 Beast 9261 | -7/Garrison | Expanded RIF knowledge: Program Shield 9269 | -7/Garrison | Lost 8 parts (1p2n2u3w) 9291 | -7/Garrison | Core integrity fell below 20% 9355 | -7/Garrison | Entered Factory 9355 | -6/Factory | Evolved 2 slots: Propulsion x1, Utility x1 9687 | -6/Factory | Identified exit to Garrison 9743 | -6/Factory | Entered Garrison 9743 | -6/Garrison | Accompanied by 2 allies 9802 | -6/Garrison | Triggered checkpoint 9849 | -6/Garrison | Expanded RIF knowledge: Signal Jamming 9889 | -6/Garrison | Garrison Relay disabled 9947 | -6/Garrison | Spotted B-90 Cyclops 10020 | -6/Garrison | Triggered checkpoint 10020 | -6/Garrison | Triggered checkpoint 10093 | -6/Garrison | Triggered checkpoint 10278 | -6/Garrison | Discovered new exit (range 10) 10337 | -6/Garrison | Garrison Relay disabled 10384 | -6/Garrison | Triggered checkpoint 10560 | -6/Garrison | Discovered new exit (range 12) 10626 | -6/Garrison | Found Relay Coupler [Proto] 10628 | -6/Garrison | Found Relay Coupler [Proto] 10631 | -6/Garrison | Found Relay Coupler [Proto] 10633 | -6/Garrison | Found Relay Coupler [Proto] 10672 | -6/Garrison | Triggered checkpoint 10756 | -6/Garrison | Phase Generator disabled 10791 | -6/Garrison | Lost 3 parts (1p2w) 10856 | -6/Garrison | Garrison Relay disabled 10895 | -6/Garrison | Entered Factory 10963 | -6/Factory | Identified exit to Garrison 11217 | -6/Factory | Entered Garrison 11244 | -6/Garrison | Triggered checkpoint 11258 | -6/Garrison | Garrison Relay disabled 11374 | -6/Garrison | Discovered new exit (range 71) 11374 | -6/Garrison | Discovered new exit (range 32) 11374 | -6/Garrison | Discovered new exit (range 58) 11374 | -6/Garrison | Discovered new exit (range 43) 11386 | -6/Garrison | Triggered checkpoint 11402 | -6/Garrison | Triggered checkpoint 11408 | -6/Garrison | Triggered checkpoint 11428 | -6/Garrison | Triggered checkpoint 11572 | -6/Garrison | Triggered checkpoint 11593 | -6/Garrison | Garrison Relay disabled 11606 | -6/Garrison | Expanded RIF knowledge: Watcher Feeds 11712 | -6/Garrison | Triggered checkpoint 11765 | -6/Garrison | Spotted B-75 Beast 11783 | -6/Garrison | Hijacked Beast 5a control node with streamctrl_high 11850 | -6/Garrison | Destroyed Beast 5a 11880 | -6/Garrison | Found Relay Coupler [Proto] 11945 | -6/Garrison | Garrison Relay disabled 12168 | -6/Garrison | Garrison Relay disabled 12282 | -6/Garrison | Entered Factory 12282 | -5/Factory | Accompanied by 1 ally 12282 | -5/Factory | Evolved 2 slots: Utility x2 12591 | -5/Factory | Lost 3 parts (2n1u) 12681 | -5/Factory | Identified exit to Garrison 12778 | -5/Factory | Entered Garrison 12778 | -5/Garrison | Accompanied by 3 allies 12810 | -5/Garrison | Triggered checkpoint 13037 | -5/Garrison | Garrison Relay disabled 13038 | -5/Garrison | Triggered checkpoint 13146 | -5/Garrison | Triggered checkpoint 13166 | -5/Garrison | Triggered checkpoint 13171 | -5/Garrison | Triggered checkpoint 13204 | -5/Garrison | Triggered checkpoint 13210 | -5/Garrison | Lost 3 parts (3n) 13338 | -5/Garrison | Expanded RIF knowledge: Autooverride 13386 | -5/Garrison | Discovered new exit (range 10) 13530 | -5/Garrison | Triggered checkpoint 13559 | -5/Garrison | Garrison Relay disabled 13648 | -5/Garrison | Discovered new exit (range 10) 13763 | -5/Garrison | Discovered new exit (range 9) 13852 | -5/Garrison | Garrison Relay disabled 13915 | -5/Garrison | Entered Factory 13915 | -4/Factory | Accompanied by 7 allies 13915 | -4/Factory | Evolved 2 slots: Utility x2 14044 | -4/Factory | Identified exit to Garrison 14058 | -4/Factory | Entered Garrison 14058 | -4/Garrison | Accompanied by 5 allies 14074 | -4/Garrison | Triggered checkpoint 14192 | -4/Garrison | Triggered checkpoint 14192 | -4/Garrison | Garrison Relay disabled 14306 | -4/Garrison | Triggered checkpoint 14311 | -4/Garrison | Triggered checkpoint 14319 | -4/Garrison | Triggered checkpoint 14330 | -4/Garrison | Triggered checkpoint 14404 | -4/Garrison | Triggered checkpoint 14421 | -4/Garrison | Garrison Relay disabled 14596 | -4/Garrison | Discovered new exit (range 13) 14764 | -4/Garrison | Discovered new exit (range 12) 14834 | -4/Garrison | Expanded RIF knowledge: Hotswap 14948 | -4/Garrison | Triggered checkpoint 14977 | -4/Garrison | Garrison Relay disabled 15014 | -4/Garrison | Discovered new exit (range 14) 15045 | -4/Garrison | Entered Research 15045 | -3/Research | Accompanied by 11 allies 15045 | -3/Research | Evolved 2 slots: Utility x2 15084 | -3/Research | Spotted B-86 Titan 15096 | -3/Research | Allies destroyed B-86 Titan 15280 | -3/Research | Identified exit to Garrison 15307 | -3/Research | Entered Garrison 15307 | -3/Garrison | Accompanied by 15 allies 15328 | -3/Garrison | Expanded RIF knowledge: Zone Cloak 15422 | -3/Garrison | Garrison Relay disabled 15440 | -3/Garrison | Triggered checkpoint 15584 | -3/Garrison | Triggered checkpoint 15584 | -3/Garrison | Spotted B-86 Titan 15600 | -3/Garrison | Triggered checkpoint 15675 | -3/Garrison | Lost 5 parts (1n3u1w) 15782 | -3/Garrison | Discovered new exit (range 10) 15795 | -3/Garrison | Entered Research 15795 | -2/Research | Evolved 2 slots: Utility x2 16119 | -2/Research | Identified exit to Garrison 16125 | -2/Research | Entered Garrison 16125 | -2/Garrison | Accompanied by 4 allies 16140 | -2/Garrison | Triggered checkpoint 16157 | -2/Garrison | Garrison Relay disabled 16248 | -2/Garrison | Triggered checkpoint 16263 | -2/Garrison | Discovered new exit (range 5) 16345 | -2/Garrison | Lost 4 parts (2n1u1w) 16443 | -2/Garrison | Discovered new exit (range 68) 16443 | -2/Garrison | Discovered new exit (range 93) 16443 | -2/Garrison | Discovered new exit (range 50) 16443 | -2/Garrison | Discovered new exit (range 42) 16482 | -2/Garrison | Triggered checkpoint 16486 | -2/Garrison | Spotted B-90 Cyclops 16508 | -2/Garrison | Triggered checkpoint 16518 | -2/Garrison | Triggered checkpoint 16560 | -2/Garrison | Triggered checkpoint 16641 | -2/Garrison | Expanded RIF knowledge: Zone Cloak 16684 | -2/Garrison | Garrison Relay disabled 16828 | -2/Garrison | Garrison Relay disabled 16846 | -2/Garrison | Triggered checkpoint 16938 | -2/Garrison | Lost 3 parts (2u1w) 17016 | -2/Garrison | Entered Access 17016 | -1/Access | Accompanied by 2 allies 17016 | -1/Access | Evolved 2 slots: Utility x2 17254 | -1/Access | Garrison activated, responded to threat 17311 | -1/Access | Identified exit to Garrison 17311 | -1/Access | Entered Garrison 17311 | -1/Garrison | Accompanied by 1 ally 17339 | -1/Garrison | Expanded RIF knowledge: Patrol Navigation 17367 | -1/Garrison | Garrison Relay disabled 17392 | -1/Garrison | Triggered checkpoint 17750 | -1/Garrison | Triggered checkpoint 17750 | -1/Garrison | Spotted B-99 Colossus 17752 | -1/Garrison | Triggered checkpoint 17760 | -1/Garrison | Triggered checkpoint 17792 | -1/Garrison | Core integrity fell below 50% 17799 | -1/Garrison | Core integrity fell below 20% 17809 | -1/Garrison | Discovered new exit (range 10) 17814 | -1/Garrison | Entered Access 17823 | -1/Access | Lost 19 parts (1p4n12u2w) 18069 | -1/Access | Destroyed by P-80 Master with Gamma Rifle Last Messages --------------- 17858_ Reactivated Overseer 10a. 17865_ Detecting nearby Garrison Access. 17879_ Garrison Access under remote control. 17996_ Acquired Enh. Nova Cannon. 18015_ Destroyed Wheel. 18032_ Destroyed Sml. Battery. 18033_ System corrupted: Matter fused (-6). 18035_ P-80 Master suffers critical hit (Blast). 18035_ Destroyed Adv. Target Analyzer. 18035_ P-80 Master destroyed. 18040_ Acquired Imp. Antigrav System. 18042_ K-01 Serf collects debris. 18043_ Acquired Adv. Heat Sink. 18047_ K-01 Serf collects debris. 18049_ Destroyed Lgt. Quantum Reactor. 18049_ G-73 Enforcer knocked back. 18049_ M-36 Artificer fits Backup Propulsion VII on U-05 Engineer. 18051_ K-01 Serf collects debris. 18051_ U-05 Engineer builds a Wall. 18066_ Imp. Antigrav System destroyed. Map ----- +----------------------------------------------------+ | ?????????????????????????????????????????????????? | | ?????????????????????????????????????????????????? | | ?????????????????????????????????????????????????? | | ?????????????????????????????????????????????????? | | ?????????????????????????????????????????????????? | | ?????????????????????????????????????????????????? | | ?????????????????????????????????????????????????? | | ?????????????????????????????????????????????????? | | ?????????????????????????????????????????????????? | | ?????????????????????????????????????????????????? | | ?????????????????????????????????????????????????? | | ?????????????????????????????????????????????????? | | ?????????????????????????????????????????????????? | | ?????????????????????????????????????????????????? | | ?????????????????????????????????????????????????? | | ?????????????????????????????????????????????????? | | ?????????????????????????????????????????????????? | | ?????????????????????????????????????????????????? | | ?????????????????????????????????????????????????? | | ?????????????????????????????????????????????????? | | ?????????????????????????????????????????????????? | | ?????????????????????????????????????????????????? | | ?????????????????????????????????????????????????? | | ???????#########??????????????????? #????????????? | | ???????# ^ ############## #????????????? | | ???????# # @ ; #????????????? | | ???????# # # #????????????? | | ???????# # #?????? #????????????? | | ???????# # !#????????????????????? | | ???????# # # ????????????????? | | ???????# # # ??????????????? | | ???????# # # #????????????? | | ???????# # # #????????????? | | ???????# # " # #????????????? | | ???????+ p """ # #???? ??????? | | ???????# # """ # #??? ???????? | | ???????# # " # #?? ????????? | | ???????# ############## ###+#####????? | | ???????# ???? | | ???????# gg g ????? | | ???????# ????? | | ???????# ???? | | ???????# ???? | | ???????# ???? | | ???????# %%[ ???? | | ???????####+##+#################/#######?????????? | | ???????????? ????????????# | #?????????? | | ?????????? ?????????????# #?????????? | | ????????? ??????????????# #?????????? | | ???????? ???????????????# """""#?????????? | +----------------------------------------------------+ Best States ------------- Heat Dissipation 71 Energy Generation 25 Energy Capacity 350 Matter Stores 300 Matter Capacity 300 Sight Range 16 Terrain Scan Density 10 Armor Coverage 600 Utility Shielding 66 Weapon Shielding 33 Phase Shifting 15 Evasion (%) 70 Targeting Accuracy 32 Target Analysis 8 Recoil Reduction 4 Offensive Hacking 12 Defensive Hacking 10 Relay Coupler Types 10 Relay Coupler Value 573 Item Schematics ----------------- Centrium Leg | -2/Research | Hacked Robot Schematics ------------------ None Fabricated ------------ Nothing Alien Tech Used ----------------- None Achievements -------------- None Challenges ------------ None Game ------ Seed LightpackArmageddonScythe Manual? 0 Play Time 03:26:40 Cumulative 272.6 hours Start 2022.08.01 @ 11:06:45 End 2022.08.01 @ 18:35:36 Sessions 1 Manual Loads 0 Difficulty Rogue Special Mode None Game No. 318 Rogue 318 Adventurer 0 Explorer 0 Win Type - Total 11 Types 8/0/2/1/0/0/0/0/0 Lore% 70 Gallery% 87 Achievement% 74 Wizard Run 0 Options --------- ASCII 0 Keyboard 0 Movement Numpad Keybinds 0 Fullscreen 1 Font 18/Terminus Map View 76x50 Tactical HUD 1 Map Filters NONE Filters NONE Steam 1 RUN: ff54a91b-73f7-4809-bb99-d3e99064e8ce